Cogmind - Beta 13 @@@ ROGUE MODE // 2024.04.18 @ 22:30:47 Player: AshCrow Result: Destroyed by as-84310 with Assembled Heavy Rifle Performance ------------- Evolutions (0) 0 Regions Visited (4) 800 Robots Destroyed (2) 10 Value Destroyed (50) 50 Prototype IDs (23) 460 Alien Tech Used (0) 0 Bonus (300) 300 TOTAL SCORE: 1620 Bonus ------- Aligned with FarCom 300 Cogmind --------- Core Integrity 0/250 Matter 197/300 Energy 259/300 System Corruption 0% Temperature Cool (0) Movement Core (100) Ox1 Location -9/Mines Parts ------- > --- POWER (1) -------- (None) > --- PROPULSION (2) --- (None) > --- UTILITY (2) ------ Large Battery > --- WEAPON (2) ------- Light Assault Rifle > --- INVENTORY (5) ---- Aluminum Leg Large Storage Unit Skeleton Box Peak State ------------ > --- POWER ------------ Light Ion Engine > --- PROPULSION ------- Wheel Wheel > --- UTILITY ---------- Signal Interpreter Skeleton Box > --- WEAPON ----------- Medium Laser Light Assault Rifle > --- INVENTORY -------- Aluminum Leg Large Battery EM Pulse Gun Rocket Launcher [Rating: 12] Favorites ----------- Power Light Ion Engine Engine Light Ion Engine Propulsion Wheel Wheel Wheel Utility Signal Interpreter Device Skeleton Box Storage Large Battery Processor Signal Interpreter Protection Hardened Light Armor Plating Weapon Light Assault Rifle Energy Gun Medium Laser Ballistic Gun Light Assault Rifle Launcher Rocket Launcher Build | -11 -10 -10 -10 -9 ------- Run | Yrd Mat Min Exi Min Slots Evolved . | . . . . . Power . | . . . . . Propulsion . | . . . . . Utility . | . . . . . Weapon . | . . . . . Parts Attached 17 | 5 2 . 3 7 Power 2 | 1 . . 1 . Engine 2 | 1 . . 1 . Core . | . . . . . Reactor . | . . . . . Propulsion 2 | 2 . . . . Treads . | . . . . . Leg . | . . . . . Wheel 2 | 2 . . . . Hover . | . . . . . Flight . | . . . . . Utility 5 | . 2 . 2 1 Device 1 | . . . 1 . Storage 2 | . 1 . 1 . Processor 1 | . 1 . . . Hackware . | . . . . . Protection 1 | . . . . 1 Artifact . | . . . . . Weapon 8 | 2 . . . 6 Energy Gun 3 | 1 . . . 2 Energy Cannon . | . . . . . Ballistic Gun 3 | 1 . . . 2 Ballistic Cannon . | . . . . . Launcher 2 | . . . . 2 Special Weapon . | . . . . . Impact Weapon . | . . . . . Slashing Weapon . | . . . . . Piercing Weapon . | . . . . . Special Melee Weapon . | . . . . . Unidentified Prototypes 1 | . . . 1 . Parts Lost 6 | . . . . 6 Power 1 | . . . . 1 Propulsion 2 | . . . . 2 Utility . | . . . . . Weapon 3 | . . . . 3 Highest Loss Streak 6 | . . . . 6 To Critical Strikes . | . . . . . Average Slot Usage (%) 93 | . 80 100 100 85 Engine 13 | . 14 14 14 11 Wheel 26 | . 28 28 28 22 Device 3 | . . . 5 4 Storage 9 | . 1 14 8 14 Processor 9 | . 7 14 14 . Protection 1 | . . . . 6 Energy Gun 13 | . 14 14 14 12 Ballistic Gun 13 | . 14 14 14 12 Naked Turns . | . . . . . Heaviest Build 14 | 6 9 9 11 14 Greatest Support 20 | 20 20 20 20 20 Greatest Overweight (x) 1 | . . . . 1 Average Overweight (x) . | . . . . . Largest Inventory Capacity 5 | 5 5 5 5 5 Average Capacity 5 | 5 5 5 5 5 Most Carried 5 | 5 5 5 5 5 Average Carried 3 | 2 3 4 4 4 Final Capacity 5 | 5 5 5 5 5 Final Carried 5 | 3 4 5 3 3 Class Distribution -------------------- 100% | Mutant Dominant Class ---------------- Mutant | -10/Materials Mutant | -10/Mines Mutant | -10/Exiles Mutant | -9/Mines Resources | -11 -10 -10 -10 -9 ----------- Run | Yrd Mat Min Exi Min Matter Collected 287 | 254 11 . . 22 Remotely . | . . . . . Salvage Created 82 | 33 18 . . 31 Parts 3 | 2 1 . . . Haulers Intercepted . | . . . . . Recyclers Shooed 1 | . . . . 1 Parts Field Recycled . | . . . . . Retrieved Matter . | . . . . . Parts Self-Destructed . | . . . . . Prevented . | . . . . . Kills | -11 -10 -10 -10 -9 ------- Run | Yrd Mat Min Exi Min Combat Hostiles Destroyed 7 | 1 . . . 6 Guns 3 | 1 . . . 2 AOE 4 | . . . . 4 Classes Destroyed 3 | 1 1 . . 1 Watcher 1 | . 1 . . . Grunt 1 | 1 . . . . Assembled 6 | . . . . 6 Best Kill Streak 6 | 1 1 . . 6 Combat Bots Only 6 | 1 . . . 6 Max Kills in Single Turn 2 | 1 1 . . 2 Gunslinging . | . . . . . Exploded 2 | . . . . 2 Melee . | . . . . . Uniques/NPCs Destroyed . | . . . . . Combat | -11 -10 -10 -10 -9 -------- Run | Yrd Mat Min Exi Min Hostile Shots Fired 58 | 5 . . . 53 Missed 20 | . . . . 20 Damage Taken 671 | 54 . . . 617 Core 256 | 21 . . . 235 Absorbed by Shields . | . . . . . Core Remaining (%) 91 | 91 . . . . Volleys Fired 23 | 4 1 . . 18 Largest 2 | 2 2 . . 2 Hottest 70 | 70 70 . . 70 Shots Fired 38 | 8 2 . . 28 Gun 35 | 8 2 . . 25 Cannon . | . . . . . Launcher 3 | . . . . 3 Special . | . . . . . Kinetic 17 | 4 1 . . 12 Thermal 12 | 4 1 . . 7 Explosive 3 | . . . . 3 Electromagnetic 6 | . . . . 6 Robot Hit Streak 7 | 6 7 . . 5 Robot Miss Streak 4 | 1 . . . 4 Penetration Max . | . . . . . Secondary Targets . | . . . . . Shots Hit Robots 24 | 7 1 . . 16 Core Hits 15 | 2 1 . . 12 Critical Kills . | . . . . . Critical Parts Destroyed . | . . . . . Critical Strikes . | . . . . . Melee Attacks . | . . . . . Impact . | . . . . . Slashing . | . . . . . Piercing . | . . . . . Sneak Attacks . | . . . . . Combat Hostiles . | . . . . . Follow-up Attacks . | . . . . . Damage Inflicted 615 | 77 12 . . 526 Guns 230 | 77 12 . . 141 Cannons . | . . . . . Explosions 385 | . . . . 385 Melee . | . . . . . Ramming . | . . . . . Kinetic 98 | 26 . . . 72 Thermal 88 | 51 12 . . 25 Explosive 385 | . . . . 385 Electromagnetic 44 | . . . . 44 Impact . | . . . . . Slashing . | . . . . . Piercing . | . . . . . Highest Corruption . | . . . . . Average Corruption . | . . . . . Corruption Purged . | . . . . . Corruption Blocked . | . . . . . Overload Shots . | . . . . . Overflow Damage 13 | . . . . 13 Projectiles . | . . . . . Explosions 13 | . . . . 13 Melee . | . . . . . Knockbacks . | . . . . . Impact . | . . . . . Kinetic . | . . . . . Secondary . | . . . . . Self-Inflicted Damage 25 | . . . . 25 Shots 1 | . . . . 1 Rammed . | . . . . . Targets Rammed . | . . . . . Kicked . | . . . . . Crushed . | . . . . . Highest Temperature 220 | 110 30 . . 220 Average Temperature 81 | 59 18 . . 94 Received Heat Transfer 50 | 30 . . . 20 Effects 2 | . . . . 2 Interference 2 | . . . . 2 Siege Activations . | . . . . . Robots Corrupted . | . . . . . Combat Hostiles . | . . . . . Parts Fried . | . . . . . Impact Corruptions . | . . . . . Robots Melted . | . . . . . Combat Hostiles . | . . . . . Parts Melted 1 | 1 . . . . Heat Transferred 259 | 148 37 . . 74 Parts Sabotaged . | . . . . . Parts Stolen . | . . . . . Parts Stripped . | . . . . . Power Chain Reactions . | . . . . . Alert | -11 -10 -10 -10 -9 ------- Run | Yrd Mat Min Exi Min Peak Influence 22 | 20 22 8 . 20 Initial 8 | . . 8 . . Average 8 | 9 13 8 . . Maximum Alert Level . | . . . . . Low Security (%) 100 | 100 100 100 . 100 Level 1 . | . . . . . Level 2 . | . . . . . Level 3 . | . . . . . Level 4 . | . . . . . Level 5 . | . . . . . High Security . | . . . . . Max Security . | . . . . . Squads Dispatched . | . . . . . Investigation . | . . . . . Extermination . | . . . . . Reinforcement . | . . . . . Assault . | . . . . . Garrison . | . . . . . Intercept . | . . . . . Searches Triggered . | . . . . . Construction Impeded . | . . . . . Haulers Reinforced . | . . . . . Active Scanning Responses . | . . . . . Cargo Convoy Interrupts . | . . . . . Stealth | -11 -10 -10 -10 -9 --------- Run | Yrd Mat Min Exi Min Distress Signals . | . . . . . Communications Jammed . | . . . . . Distress Signals . | . . . . . Times Spotted 13 | 1 1 . . 11 Peak Tracking Total 7 | 1 1 . . 7 Tactical Retreats 1 | . . . . 1 Traps | -11 -10 -10 -10 -9 ------- Run | Yrd Mat Min Exi Min Traps Triggered . | . . . . . Indirectly . | . . . . . Trap Hack Attempts . | . . . . . Triggered . | . . . . . Disarmed . | . . . . . Reprogrammed . | . . . . . Reused . | . . . . . Traps Extracted . | . . . . . Installed . | . . . . . Triggered . | . . . . . Machines | -11 -10 -10 -10 -9 ---------- Run | Yrd Mat Min Exi Min Machines Disabled . | . . . . . Max in Single Turn . | . . . . . Machines Repaired . | . . . . . Machines Dismantled . | . . . . . Machines Sabotaged . | . . . . . Overloaded Fab Kills . | . . . . . Hacking | -11 -10 -10 -10 -9 --------- Run | Yrd Mat Min Exi Min Machines Accessed 5 | . . . 5 . Terminals . | . . . . . Fabricators . | . . . . . Repair Stations . | . . . . . Recycling Units . | . . . . . Scanalyzers . | . . . . . Garrison Access . | . . . . . Total Hacks 50 | . . . 50 . Successful 50 | . . . 50 . Failed . | . . . . . Catastrophic . | . . . . . Database Lockouts . | . . . . . Manual 4 | . . . 4 . Terminals . | . . . . . Fabricators . | . . . . . Repair Stations . | . . . . . Recycling Units . | . . . . . Scanalyzers . | . . . . . Garrison Access . | . . . . . Terminal Hacks 50 | . . . 50 . Record 49 | . . . 49 . Derelict Proto ID Bank 1 | . . . 1 . Fabricator Hacks . | . . . . . Repair Station Hacks . | . . . . . Recycling Unit Hacks . | . . . . . Scanalyzer . | . . . . . Garrison Access Hacks . | . . . . . Unauthorized Hacks . | . . . . . Terminals . | . . . . . Fabricators . | . . . . . Repair Stations . | . . . . . Recycling Units . | . . . . . Scanalyzers . | . . . . . Garrison Access . | . . . . . Data Cores Recovered . | . . . . . Used . | . . . . . Hacking Detections . | . . . . . Full Trace Events . | . . . . . Feedback Events . | . . . . . Feedback Blocked . | . . . . . Robot Schematics Acquired . | . . . . . Robots Built . | . . . . . Authchips . | . . . . . Time . | . . . . . Total Robot Build Rating . | . . . . . Part Schematics Acquired . | . . . . . Parts Built . | . . . . . Authchips . | . . . . . Time . | . . . . . Total Part Build Rating . | . . . . . Parts Repaired . | . . . . . Time . | . . . . . Parts Recycled . | . . . . . Recycled Matter . | . . . . . Retrieved Matter . | . . . . . Retrieved Components . | . . . . . Parts Scanalyzed . | . . . . . Part Schematics Acquired . | . . . . . Parts Damaged . | . . . . . Bothacking | -11 -10 -10 -10 -9 ------------ Run | Yrd Mat Min Exi Min Used RIF Installer . | . . . . . Robots Hacked . | . . . . . Non-combat . | . . . . . Combat . | . . . . . Robot Hacks Applied . | . . . . . Relay Couplers Released . | . . . . . Fabnet Peak Effective % . | . . . . . Robots Rewired . | . . . . . Allies Hacked . | . . . . . Hacks Repelled . | . . . . . Allies | -11 -10 -10 -10 -9 -------- Run | Yrd Mat Min Exi Min Total Allies . | . . . . . Largest Group . | . . . . . Highest-Rated Group . | . . . . . Highest-Rated Ally . | . . . . . Total Orders . | . . . . . Ally Attacks . | . . . . . Total Damage . | . . . . . Kills . | . . . . . Allies Corrupted . | . . . . . Allies Melted . | . . . . . Intel | -11 -10 -10 -10 -9 ------- Run | Yrd Mat Min Exi Min Robot Analysis Total . | . . . . . Derelict Logs Recovered 1 | . . 1 . . Drone Launches . | . . . . . Drone Recoveries . | . . . . . Exploration | -11 -10 -10 -10 -9 ------------- Run | Yrd Mat Min Exi Min Turns Passed 1369 | 705 91 85 332 156 Spaces Moved 931 | 218 104 78 408 123 Core 24 | 24 . . . . Treads . | . . . . . Legs . | . . . . . Wheels 907 | 194 104 78 408 123 Hover . | . . . . . Flight . | . . . . . Fastest Speed 50 | 50 80 80 80 80 Average Speed 79 | 76 80 80 80 80 Slowest Speed 95 | 80 80 80 80 95 Overloaded Moves . | . . . . . Propulsion Burnouts . | . . . . . Robots Hopped . | . . . . . Cave-ins Triggered . | . . . . . Exploration Rate (%) 34 | 25 15 27 65 39 Regions Visited 4 Branch Regions 3 Pre-discovered Areas 1 | . . . 1 . Known Exits Taken 3 | . 1 1 1 . Unknown Exits Taken 1 | 1 . . . . Scrap Searched 1 | . . . . 1 Spaces Dug . | . . . . . Terrain Destroyed 10 | . . . . 10 Melee . | . . . . . Projectile . | . . . . . AOE 10 | . . . . 10 Terrain Rammed . | . . . . . Walls Destroyed . | . . . . . Machines Disabled . | . . . . . Actions | -11 -10 -10 -10 -9 --------- Run | Yrd Mat Min Exi Min Total 1521 | 748 109 100 413 151 Wait 537 | 514 . 22 . 1 Move 927 | 217 103 77 407 123 Hop . | . . . . . Pick Up 15 | 8 3 1 1 2 Fast Attach . | . . . . . Attach 10 | 5 2 . 1 2 Detach . | . . . . . Swap 7 | . . . 2 5 Drop 2 | . . . 2 . Fire 23 | 4 1 . . 18 Melee . | . . . . . Ram . | . . . . . Kick . | . . . . . Crush . | . . . . . Escape Stasis . | . . . . . Rewire . | . . . . . Trap . | . . . . . Miscellaneous . | . . . . . Route ------- -11/Scrapyard -10/Materials -10/Mines -10/Exiles (discovered 2 exits: *Min x2) -9/Mines History --------- Turn | Location | Event 2 | -11/Scrapyard | Met Revision 17 59 | -11/Scrapyard | Discovered new exit (range 8) 706 | -11/Scrapyard | Entered Materials 707 | -10/Materials | Build established: Mutant 722 | -10/Materials | Discovered new exit (range 15) 794 | -10/Materials | Met 8R-AWN 796 | -10/Materials | Identified exit to Mines 797 | -10/Materials | Entered Mines 798 | -10/Mines | Followed 8R-AWN into the Mines 804 | -10/Mines | Received a Rocket Launcher from a helpful Derelict 877 | -10/Mines | Discovered new exit (range 5) 880 | -10/Mines | Identified exit to Exiles 882 | -10/Mines | Entered Exiles 895 | -10/Exiles | Discovered new exit (range 15) 905 | -10/Exiles | Identified exit to Mines 922 | -10/Exiles | Welcomed by 8R-AWN 939 | -10/Exiles | Met EX-HEX 971 | -10/Exiles | Met EX-BIN 984 | -10/Exiles | Aligned with FarCom system 985 | -10/Exiles | Given EX-Vault access code 1076 | -10/Exiles | Opened EX-Vault 1081 | -10/Exiles | Found Prototype Device 1086 | -10/Exiles | Identified Skeleton Box 1114 | -10/Exiles | Warned to stay clear of 0b10 Research branches 1137 | -10/Exiles | Met EX-DEC 1174 | -10/Exiles | Learned location of Zion (-6) 1205 | -10/Exiles | Discovered exit to Mines (range 12) 1214 | -10/Exiles | Left Exiles lab with Skeleton Box 1214 | -10/Exiles | Entered Mines 1217 | -9/Mines | Assembled infested the area 1217 | -9/Mines | Met a Derelict bent on vengeance 1356 | -9/Mines | Core integrity fell below 50% 1367 | -9/Mines | Core integrity fell below 20% 1370 | -9/Mines | Destroyed by as-84310 with Assembled Heavy Rifle Last Messages --------------- as-96232 destroyed. Hrd. Light Armor Plating severed. Wheel destroyed. as-68963 sneak attacks. R-06 Scavenger knocked back. R-06 Scavenger destroyed. as-68963 destroyed. Destroyed Asb. Hover Unit. as-20955 destroyed. Destroyed Asb. Hover Unit. Med. Laser destroyed. as-69100 destroyed. Destroyed Asb. Hover Unit. Rocket Launcher destroyed. Lgt. Ion Engine destroyed. as-32639 destroyed. Wheel destroyed. EM Pulse Gun destroyed. as-08244 destroyed. as-59212 destroyed. Map ----- +----------------------------------------------------+ | ?????????????????????????????????????????????????? | | ?????????????????????????????????????????????????? | | ?????????????????????????????????????????????????? | | ?????????????????????????????????????????????????? | | ?????????????????????????????????????????????????? | | ?????????????????????????????????????????????????? | | ???????????????????##????????????????????????????? | | ??????????????????? #????????#% ???????????????? | | ??????????????????? #??????# ?????????????? | | ???????????????????? ####?? ?????????????? | | ???????????????????? #?# ????????????? | | ????????????????????? ## ????????????? | | ????????????????????? = ???????????? | | ?????????????????????# % = ???????????? | | ?????????????????????# #??????????? | | ????#####???????????## #??????????? | | ???## ####????????# ??????????? | | ??## ##??????## #?????????? | | ?## #??????# = #??????????? | | ## ##?????# %% #???????????? | | ## ##????# * a ## #????????????? | | #### ###??# ##??????????????????? | | """ #??## #???# ##???????????????????? | | """ ###### #????# ###??#####???????###???? | | """ #######????###a%#???## ##??????# ???? | | #????????????# @#???# #??????# #???# | | ##### #????????????# #??## #?????### #### | | #??# #????????????# #### #??????# | | #?## #????????????# ## #??????# !!! | | # ##?# #???????????## # #??????# ! | | ?###??# ##?????????## r #??????# ! ! | | ??????## #??########d ##?????# !!! | | ??????## #??# d ####### | | ?????## #### ####### | | ???### #?????##### ! | | ???# #?????????##### ### ##### | | ??# #####?????????????####?######???# # | | ??# #???????????????????????????????## ## | | ?# #????????????????????????????????####? | | # ##????????????????????????????????????? | | ## ##?????????????????????????????????????? | | #?## #???????????????????????????????????????? | | ###???###????????????????????????????????????????? | | ?????????????????????????????????????????????????? | | ?????????????????????????????????????????????????? | | | | | | | | | | | +----------------------------------------------------+ Best States ------------- Heat Dissipation 25 Energy Generation 10 Energy Capacity 325 Matter Stores 300 Matter Capacity 300 Sight Range 16 Terrain Scan Density 10 Armor Coverage 150 Evasion (%) 50 Item Schematics ----------------- None Robot Schematics ------------------ None Fabricated ------------ Nothing Alien Tech Used ----------------- None Achievements -------------- Librarian Challenges ------------ None Game ------ Seed SeismicRefineryMinigun Manual? 0 Play Time 00:32:43 Cumulative 2.1 hours Start 2024.04.18 @ 21:35:13 End 2024.04.18 @ 22:30:47 Sessions 1 Manual Loads 0 Difficulty Rogue Special Mode None Game No. 2 Rogue 2 Adventurer 0 Explorer 0 Win Type - Total 0 Types 0/0/0/0/0/0/0/0/0 Lore% 10 Gallery% 2 Achievement% 4 Wizard Run 0 Options --------- Layout 1 ASCII 0 Keyboard 0 Movement Numpad Keybinds 0 Fullscreen 1 Font 24/Smallcaps Map View 50x35 Zoom Use 0% Tactical HUD 0 Map Filters NONE Filters NONE Steam 1 RUN: e39dd7d2-677b-44d8-9d59-4033decc33d8